[Event "CCT Chessable Masters Playoffs 2025"]
[Site "Online"]
[Date "2025.02.18"]
[Round "2"]
[White "Carlsen, Magnus"]
[Black "Yu, Yangyi"]
[Result "1-0"]
[Annotator "TA"]
[ECO "D00"]
[WhiteElo "2833"]
[BlackElo "2715"]
[PlyCount "63"]
[EventDate "2025.02.13"]
[EventType "k.o."]
[EventCountry "NET"]
[SourceTitle "playchess.com"]
[Source "ChessBase"]
[SourceQuality "1"]
[TimeControl "600"]

{[%evp 9,63,48,48,38,42,47,29,43,46,33,46,35,41,-2,29,68,42,0,65,35,31,43,39,33,36,44,59,0,52,47,55,30,34,26,22,0,25,31,174,171,197,195,186,187,391,369,541,530,1670,1658,4978,1913,4013,3299,29976,29977]} 1. d4 {[%emt 0:00:04]} Nf6 {[%emt 0:00:02]} 2. Bf4 {[%emt 0:00:01]} d5 {[%emt 0:00:14]} 3. e3 {[%emt 0:00:01]} Bg4 {[%emt 0:00:03][%cal Bc8g4,Bg4h5,Bh5g6][%mdl 32]} 4. f3 {[%emt 0:00:09]} Bh5 {[%emt 0:00:03]} 5. g4 {[%emt 0:00:04][%cal Bg2g4,Bg4g5,Bg5g6][%mdl 32]} Bg6 {[%emt 0:00:01]} 6. h4 {[%emt 0:00:01] D00: 1 d4 d5: Unusual lines.} h5 {[%emt 0:00:09]} 7. g5 {[%emt 0:00:01]} Nfd7 {[%emt 0:00:01]} 8. Bd3 {[%emt 0:00:02] White has an edge.} Bxd3 {[%emt 0:00:02]} 9. Qxd3 {[%emt 0:00:03]} e6 {[%emt 0:00:21]} 10. g6 {[%emt 0:00:07]} f6 {[%emt 0:00:17]} 11. Ne2 $146 {[%emt 0:00:07]} (11. Nc3 Nc6 12. O-O-O Nb6 13. Nb5 Bd6 14. Ne2 a6 15. Nxd6+ cxd6 16. e4 Qc7 17. a3 {½-½ Bauer,C (2644)-Efimov,I (2433) Francophone-ch rapid 5th 2018 (11)}) 11... c5 {[%emt 0:00:12]} 12. c4 {[%emt 0:00:13]} Nb6 {[%emt 0:00:24]} 13. cxd5 {[%emt 0:00:44]} c4 {[%emt 0:00:08]} (13... Qxd5 $11 14. Nbc3 Qxf3) 14. Qe4 {[%emt 0:00:11] White is more active.} (14. Qc2 {simplifies} exd5 15. Bxb8 Qxb8 16. Nbc3) 14... Qxd5 {[%emt 0:00:01]} 15. Nbc3 {[%emt 0:00:03]} Qxe4 {[%emt 0:00:17]} 16. fxe4 {[%emt 0:00:01] A sharp opening} Nc6 {[%emt 0:00:04]} 17. Bc7 {[%emt 0:00:22]} Nb4 {[%emt 0:00:28] aiming for ...Nc2+.} 18. Nf4 {[%emt 0:00:30]} (18. Bxb6 $14 axb6 19. Kd2) 18... Kd7 {[%emt 0:00:11]} ({Black should play} 18... Nc2+ $11 19. Kd2 Nxa1) 19. Bxb6 $14 {[%emt 0:00:02]} axb6 {[%emt 0:00:01]} 20. Ke2 {[%emt 0:00:15]} Bd6 {[%emt 0:00:11]} 21. a3 $36 {[%emt 0:00:05][%cal Ba2a3,Ba3b4,Bb4b5][%mdl 2080] White fights for an advantage.} Bxf4 $1 {[%emt 0:00:37]} 22. axb4 {[%emt 0:00:05]} Bd6 {[%emt 0:00:12]} 23. b5 {[%emt 0:00:04]} Bb4 {[%emt 0:00:12] This costs Black the game.} (23... Rxa1 $1 $14 24. Rxa1 Rh6) 24. Na4 $18 {[%emt 0:00:14]} Ba5 {[%emt 0:00:15]} 25. Rac1 {[%emt 0:00:04]} Rac8 {[%emt 0:00:04] [#]} 26. Rc2 $1 {[%emt 0:00:03]} Rh6 $2 {[%emt 0:00:14] [#]} (26... Ke7 27. Rhc1 c3 28. Nxc3 (28. bxc3 Rh6 $18) 28... Bxc3) 27. Rhc1 $1 {[%emt 0:00:14] and b4 would now be decisive} (27. Rg1 Rc7 28. Rgc1 c3 $16 (28... Rxg6 $2 29. Rxc4 Rxc4 30. Rxc4 $18)) 27... c3 {[%emt 0:01:20]} (27... Rhh8 {was called for.} 28. e5 (28. Rxc4 Rxc4 29. Rxc4 Rc8 $18) 28... fxe5 29. dxe5 (29. Rxc4 Rxc4 30. Rxc4 Rc8 $18) 29... c3) 28. b4 $1 {[%emt 0:00:29]} (28. bxc3 Rxg6 29. c4 Rg2+ 30. Kf3 Rxc2 31. Rxc2 g5 $16) 28... Rc4 {[%emt 0:00:02]} 29. bxa5 {[%emt 0:00:55]} ({Not} 29. Rxc3 Rxc3 30. Rxc3 Bxb4 31. Nxb6+ Kd6 $18) (29. Nxc3 Bxb4 30. Na4 Rxc2+ 31. Rxc2 Ba5 $15) 29... Rxa4 {[%emt 0:00:02]} 30. Rxc3 {[%emt 0:00:01]} Rxa5 {[%emt 0:00:58]} 31. e5 {[%emt 0:00:21] Rc7+ would kill now.} fxe5 {[%emt 0:01:40]} 32. dxe5 {[%emt 0:00:00] Weighted Error Value: White=0.09 (flawless) /Black=0.84  Mistake:       	White=1     	Black=5      Inaccurate:     	White=3     	Black=3      OK:         	White=7     	Black=9      Best:        	White=4     	Black=1      Strong:       	White=2     	Black=1} 1-0

[Event "CCT Chessable Masters Playoffs 2025"]
[Site "Online"]
[Date "2025.02.18"]
[Round "2"]
[White "Caruana, Fabiano"]
[Black "Firouzja, Alireza"]
[Result "0-1"]
[Annotator "ChessBase"]
[ECO "C47"]
[WhiteElo "2803"]
[BlackElo "2760"]
[PlyCount "152"]
[EventDate "2025.02.13"]
[EventType "k.o."]
[EventCountry "NET"]
[SourceTitle "playchess.com"]
[Source "ChessBase"]
[SourceQuality "1"]
[TimeControl "600"]

1. e4 {[%emt 0:00:00]} e5 {[%emt 0:00:01]} 2. Nf3 {[%emt 0:00:01]} Nc6 {[%emt 0:00:01]} 3. Nc3 {[%emt 0:00:01]} Nf6 {[%emt 0:00:00]} 4. h3 {[%emt 0:00:00]} Bb4 {[%emt 0:00:01]} 5. Bd3 {[%emt 0:00:01]} O-O {[%emt 0:00:01]} 6. O-O {[%emt 0:00:01]} d6 {[%emt 0:00:01]} 7. Ne2 {[%emt 0:00:02]} Re8 {[%emt 0:00:01]} 8. c4 {[%emt 0:00:04]} Bc5 {[%emt 0:00:06]} 9. Bc2 {[%emt 0:00:01]} h6 {[%emt 0:00:01]} 10. a3 {[%emt 0:00:02]} a5 {[%emt 0:00:01]} 11. d3 {[%emt 0:00:01]} Nh7 {[%emt 0:00:03]} 12. Ba4 {[%emt 0:00:10]} Bd7 {[%emt 0:00:47]} 13. Ng3 {[%emt 0:00:03]} Nf8 {[%emt 0:00:23]} 14. Be3 {[%emt 0:00:33]} Ne6 {[%emt 0:00:05]} 15. Nf5 {[%emt 0:00:29]} Kh7 {[%emt 0:00:45]} 16. Bxc6 {[%emt 0:00:54]} Bxc6 {[%emt 0:00:14]} 17. b3 {[%emt 0:00:03]} Bd7 {[%emt 0:01:06]} 18. Qc2 {[%emt 0:00:26]} Qf6 {[%emt 0:00:08]} 19. Qc3 {[%emt 0:00:27]} Nf8 {[%emt 0:00:57]} 20. Bxc5 {[%emt 0:02:39]} dxc5 {[%emt 0:00:02]} 21. Rae1 {[%emt 0:00:00]} Ng6 {[%emt 0:00:07]} 22. Ne3 {[%emt 0:00:06]} c6 {[%emt 0:00:18]} 23. Nh2 {[%emt 0:00:15]} Nf4 {[%emt 0:00:06]} 24. Kh1 {[%emt 0:00:01]} b6 {[%emt 0:00:10]} 25. Rd1 {[%emt 0:00:03]} h5 {[%emt 0:00:36]} 26. Rd2 {[%emt 0:00:11]} Be6 {[%emt 0:00:23]} 27. Rfd1 {[%emt 0:00:08]} Red8 {[%emt 0:00:07]} 28. h4 {[%emt 0:00:04]} Ng6 {[%emt 0:00:11]} 29. g3 {[%emt 0:00:01]} Qe7 {[%emt 0:00:02]} 30. Rb1 {[%emt 0:00:10]} f6 {[%emt 0:00:04]} 31. Nf3 {[%emt 0:00:04]} Nf8 {[%emt 0:00:09]} 32. b4 {[%emt 0:00:02]} axb4 {[%emt 0:00:07]} 33. axb4 {[%emt 0:00:00]} Qd7 {[%emt 0:00:09]} 34. b5 {[%emt 0:00:08]} Bg4 {[%emt 0:00:12]} 35. Nxg4 {[%emt 0:00:18]} Qxg4 {[%emt 0:00:17]} 36. Nh2 {[%emt 0:00:01]} Qd7 {[%emt 0:00:01]} 37. bxc6 {[%emt 0:00:01]} Qxc6 {[%emt 0:00:00]} 38. Rdb2 {[%emt 0:00:01]} Ra6 {[%emt 0:00:02]} 39. Nf1 {[%emt 0:00:06]} Rd6 {[%emt 0:00:29]} 40. Kg2 {[%emt 0:00:19]} Qd7 {[%emt 0:00:03]} 41. Rd1 {[%emt 0:00:12]} Ne6 {[%emt 0:00:02]} 42. Ne3 {[%emt 0:00:01]} Nd4 {[%emt 0:00:00]} 43. Rdb1 {[%emt 0:00:03]} Qf7 {[%emt 0:00:26]} 44. Qe1 {[%emt 0:00:03]} Qg6 {[%emt 0:00:02]} 45. Qd1 {[%emt 0:00:04]} f5 {[%emt 0:00:15]} 46. exf5 {[%emt 0:00:04]} Nxf5 {[%emt 0:00:00]} 47. Nxf5 {[%emt 0:00:05]} Qxf5 {[%emt 0:00:00]} 48. Rb3 {[%emt 0:00:06]} Ra2 {[%emt 0:00:04]} 49. Qe1 {[%emt 0:00:16]} Rxd3 {[%emt 0:00:27]} 50. Rxd3 {[%emt 0:00:01]} Qxd3 {[%emt 0:00:01]} 51. Rxb6 {[%emt 0:00:01]} e4 {[%emt 0:00:00]} 52. Re6 {[%emt 0:00:23]} Re2 {[%emt 0:00:01]} 53. Qf1 {[%emt 0:00:03]} Qf3+ {[%emt 0:00:01]} 54. Kg1 {[%emt 0:00:01]} Rd2 {[%emt 0:00:01]} 55. Qg2 {[%emt 0:00:05]} Rd1+ {[%emt 0:00:01]} 56. Kh2 {[%emt 0:00:00]} Rd2 {[%emt 0:00:01]} 57. Qxf3 {[%emt 0:00:07]} exf3 {[%emt 0:00:01]} 58. g4 {[%emt 0:00:03]} Rxf2+ {[%emt 0:00:02]} 59. Kg3 {[%emt 0:00:00]} Rg2+ {[%emt 0:00:00]} 60. Kxf3 {[%emt 0:00:01]} Rxg4 {[%emt 0:00:00]} 61. Re5 {[%emt 0:00:01]} Rxh4 {[%emt 0:00:01]} 62. Rxc5 {[%emt 0:00:00]} Kh6 {[%emt 0:00:01]} 63. Rc7 {[%emt 0:00:01]} g6 {[%emt 0:00:00]} 64. c5 {[%emt 0:00:01]} Rc4 {[%emt 0:00:00]} 65. Ke3 {[%emt 0:00:01]} h4 {[%emt 0:00:01]} 66. Kd3 {[%emt 0:00:00]} Rc1 {[%emt 0:00:00]} 67. Rc8 {[%emt 0:00:00]} Kg5 {[%emt 0:00:02]} 68. c6 {[%emt 0:00:01]} Kg4 {[%emt 0:00:00]} 69. Kd4 {[%emt 0:00:01]} g5 {[%emt 0:00:01]} 70. Kd5 {[%emt 0:00:01]} h3 {[%emt 0:00:00]} 71. Rh8 {[%emt 0:00:00]} Kg3 {[%emt 0:00:01]} 72. Kd6 {[%emt 0:00:02]} h2 {[%emt 0:00:00]} 73. c7 {[%emt 0:00:00]} g4 {[%emt 0:00:02]} 74. Kd7 {[%emt 0:00:02]} Kg2 {[%emt 0:00:00]} 75. Rh4 {[%emt 0:00:01]} g3 {[%emt 0:00:01]} 76. Rh5 {[%emt 0:00:03]} h1=Q {[%emt 0:00:01]} 0-1

[Event "CCT Chessable Masters Playoffs 2025"]
[Site "Online"]
[Date "2025.02.18"]
[Round "2"]
[White "Caruana, Fabiano"]
[Black "Firouzja, Alireza"]
[Result "1-0"]
[Annotator "TA"]
[ECO "C47"]
[WhiteElo "2803"]
[BlackElo "2760"]
[PlyCount "75"]
[EventDate "2025.02.13"]
[EventType "k.o."]
[EventCountry "NET"]
[SourceTitle "playchess.com"]
[Source "ChessBase"]
[SourceQuality "1"]
[TimeControl "600"]

{[%evp 9,74,0,0,0,0,-20,-18,-26,-11,-12,-6,0,0,-5,0,-13,12,0,10,6,5,-5,0,22,29,22,32,37,65,18,175,114,285,233,273,71,126,125,130,115,129,84,91,89,89,80,69,79,89,83,82,90,68,44,35,20,43,24,96,30,152,150,185,104,246,225,29999]} 1. e4 {[%emt 0:00:00]} e5 {[%emt 0:00:02]} 2. Nf3 {[%emt 0:00:02]} Nc6 {[%emt 0:00:01]} 3. Nc3 {[%emt 0:00:00]} Nf6 {[%emt 0:00:02]} 4. h3 {[%emt 0:00:01]} Bb4 {[%emt 0:00:08]} 5. Bd3 {[%emt 0:00:02][%cal Bf1d3,Bd3c2,Bc2a4][%mdl 32]} O-O {[%emt 0:00:16]} 6. O-O {[%emt 0:00:02] C47: Scotch Four Knights and Four Knights with 4 g3.} d6 {[%emt 0:00:13]} 7. Ne2 {[%emt 0:00:01]} Re8 {[%emt 0:00:16]} 8. c4 {[%emt 0:00:02] The position is equal.} Bc5 {[%emt 0:00:07]} 9. Bc2 $146 {[%emt 0:00:13]} (9. b3 a6 10. Bb2 Bd7 11. a3 a5 12. Bc2 Rb8 13. Re1 b5 14. cxb5 Rxb5 15. d4 {0-1 Gukesh,D (2763)-Vidit,S (2720) Zagreb Superbet Blitz 2024 (4)}) 9... a5 {[%emt 0:00:04]} 10. a3 {[%emt 0:00:02]} h6 {[%emt 0:00:04]} 11. d3 {[%emt 0:00:03]} Bd7 {[%emt 0:00:02]} 12. Be3 {[%emt 0:00:14]} b6 {[%emt 0:00:14]} 13. Ng3 {[%emt 0:00:05]} Nh7 {[%emt 0:00:15]} 14. Ba4 {[%emt 0:00:34]} Ne7 {[%emt 0:00:28]} 15. d4 {[%emt 0:00:32]} exd4 {[%emt 0:00:02]} 16. Nxd4 {[%emt 0:00:01]} Nf8 {[%emt 0:00:06]} 17. Bxd7 {[%emt 0:00:20]} Qxd7 {[%emt 0:00:05]} 18. b3 {[%emt 0:00:01]} Nc6 {[%emt 0:00:59]} 19. Ndf5 {[%emt 0:00:03] [#]} Re6 $2 {[%emt 0:00:55]} (19... Bxe3 $1 $11 {and Black has nothing to worry.} 20. Nxe3 (20. fxe3 Qd8 $11) 20... Rac8) 20. Bd2 {[%emt 0:00:43]} (20. Bc1 $18) 20... Kh7 $2 {[%emt 0:00:51]} (20... Bd4 $16) 21. Bc3 {[%emt 0:00:21]} g6 {[%emt 0:00:04] [#]} 22. Nh4 {[%emt 0:00:13]} (22. b4 $1 $18 {[%cal Rb4c5] and the rest is easy.} axb4 23. axb4 Rxa1 24. Qxa1 Bxb4 25. Bxb4) 22... Qe7 {[%emt 0:00:33]} (22... Rb8 $142) 23. Nf3 $16 {[%emt 0:00:03]} Rb8 {[%emt 0:00:20]} 24. Qd5 {[%emt 0:00:51]} Qe8 {[%emt 0:00:10]} 25. Rfb1 {[%emt 0:00:19]} b5 {[%emt 0:00:29]} 26. b4 {[%emt 0:00:02]} axb4 {[%emt 0:00:02]} 27. axb4 {[%emt 0:00:01]} Bb6 {[%emt 0:00:03]} 28. c5 $40 {[%emt 0:01:11][%mdl 128] White plays on the queen side and is better White goes for the king.} dxc5 {[%emt 0:00:46]} 29. bxc5 {[%emt 0:00:00]} Ba7 {[%emt 0:00:07]} 30. Nd4 {[%emt 0:00:03] Black must now prevent Nxc6. White is much more active.} Ne7 {[%emt 0:00:20]} 31. Qb3 {[%emt 0:00:09]} Bxc5 {[%emt 0:00:01]} 32. Nxe6 {[%emt 0:00:02]} (32. Nxb5 Reb6 33. Qc4 (33. Ra5 $2 Nc6 $19) 33... Ne6 $17 (33... Rxb5 34. Rxb5 Rxb5 35. Ra8 $14)) 32... Nxe6 {[%emt 0:00:00]} 33. Rd1 {[%emt 0:00:14]} Bb6 {[%emt 0:00:04]} (33... Nc6 $11 {remains equal.}) 34. Bf6 {[%emt 0:00:09]} ({White should try} 34. e5 $16) 34... Ng8 {[%emt 0:00:05]} (34... Nc6 $11) 35. Bb2 {[%emt 0:00:50]} c5 {[%emt 0:00:01]} 36. Ne2 {[%emt 0:00:05]} (36. Rd6 $18 b4 37. Rad1) 36... c4 {[%emt 0:00:19]} (36... b4 $16 37. Be5 Rd8 38. Rxd8 Nxd8) 37. Qc3 $18 {[%emt 0:00:03][%csl Gb2][%cal Rc3h8]} Qc6 $2 {[%emt 0:00:02]} (37... f6 $18 38. e5 Nc5 39. exf6 Qf7) 38. Qh8# {[%emt 0:00:03] Weighted Error Value: White=0.20 (precise) /Black=0.43  Loses game:     	---       	Black=1      Missed win:     	White=1     	---        Mistake:       	White=3     	Black=6      Inaccurate:     	White=1     	Black=1      OK:         	White=9     	Black=10     Best:        	White=5     	Black=2} 1-0

[Event "CCT Chessable Masters Playoffs 2025"]
[Site "Online"]
[Date "2025.02.18"]
[Round "2"]
[White "Nakamura, Hikaru"]
[Black "Nepomniachtchi, Ian"]
[Result "1-0"]
[Annotator "TA"]
[ECO "A01"]
[WhiteElo "2802"]
[BlackElo "2754"]
[PlyCount "65"]
[EventDate "2025.02.13"]
[EventType "k.o."]
[EventCountry "NET"]
[SourceTitle "playchess.com"]
[Source "ChessBase"]
[SourceQuality "1"]
[TimeControl "600"]

{[%evp 9,65,9,28,25,38,36,46,36,54,32,39,35,57,34,69,65,114,92,81,82,89,84,76,80,188,178,183,155,150,151,143,140,196,117,122,107,117,131,135,137,226,104,142,137,132,125,121,95,220,214,263,242,229,223,223,214,207,198]} 1. b3 {[%emt 0:00:00]} e5 {[%emt 0:00:03]} 2. Bb2 {[%emt 0:00:01]} Nc6 {[%emt 0:00:00]} 3. e3 {[%emt 0:00:04]} g6 {[%emt 0:00:02]} 4. Nf3 {[%emt 0:00:09]} Bg7 {[%emt 0:00:03]} 5. c4 {[%emt 0:00:01]} Nge7 {[%emt 0:00:02]} 6. d4 {[%emt 0:00:12] A01: Nimzowitsch-Larsen Opening.} d6 {[%emt 0:00:22]} 7. Be2 {[%emt 0:00:10]} O-O {[%emt 0:00:02]} 8. O-O {[%emt 0:00:02] White is slightly better.} e4 {[%emt 0:00:11]} 9. Nfd2 {[%emt 0:00:03]} f5 {[%emt 0:00:00]} 10. Nc3 {[%emt 0:00:04]} h5 $146 {[%emt 0:00:40]} (10... Qe8 11. a3 Nd8 12. b4 c6 13. Qb3 Be6 14. d5 Bf7 15. dxc6 bxc6 16. Na4 Ne6 17. Bxg7 Kxg7 {1-0 Tabatabaei,M (2696)-Harshavardhan,G (2413) Speed Chess Q2 Sw blitz 2023 (5)}) 11. f4 {[%emt 0:00:41]} exf3 {[%emt 0:00:13]} 12. Nxf3 {[%emt 0:00:04]} f4 {[%emt 0:00:44]} (12... Bh6 $14 {deserves consideration.}) 13. e4 {[%emt 0:00:27][%cal Be3e4,Be4e5][%mdl 32]} Bg4 {[%emt 0:00:03]} 14. Nd5 {[%emt 0:00:03]} Qd7 {[%emt 0:00:27]} 15. Qd2 {[%emt 0:00:42]} Nxd5 {[%emt 0:00:32]} 16. cxd5 {[%emt 0:00:02]} Nd8 {[%emt 0:00:04]} (16... Ne7 $16) 17. e5 $18 {[%emt 0:00:06]} c6 {[%emt 0:00:04]} 18. h3 {[%emt 0:01:11]} Bxf3 {[%emt 0:00:45]} 19. Bxf3 {[%emt 0:00:01]} dxe5 {[%emt 0:00:00]} 20. dxe5 {[%emt 0:00:02][%csl Oe5][%cal Bd4e5,Be5e6][%mdl 32] White plays in the center. White has a strong passed pawn} Ne6 {[%emt 0:00:01]} (20... cxd5 $16 21. Bxd5+ (21. Qxd5+ Qxd5 22. Bxd5+ Kh7 $16) 21... Ne6) 21. Rad1 {[%emt 0:00:04]} ({Better is} 21. Be4 $18) 21... Ng5 $16 {[%emt 0:00:04]} 22. e6 {[%emt 0:00:39]} Qe7 {[%emt 0:00:03]} 23. Bxg7 {[%emt 0:00:05]} (23. dxc6 Rad8 24. Bd5 bxc6 25. Bxg7 Kxg7 26. Qc3+ Kh6 27. Qxc6 (27. Bxc6 Nxe6 28. Bd5 Ng7 $11) 27... Rd6 $14) 23... Kxg7 {[%emt 0:00:16]} 24. dxc6 {[%emt 0:00:02]} bxc6 {[%emt 0:00:13]} (24... Nxf3+ $16 25. Rxf3 bxc6 26. Rxf4 Qxe6 27. Qd7+ Qxd7 28. Rxd7+ Kg8 29. Rxf8+ Kxf8) 25. Qd7 {[%emt 0:00:02]} (25. Bxc6 $18 {is more deadly.} Rad8 26. Qc3+ Kh7 27. Rd7 Rxd7 28. exd7) 25... Rae8 {[%emt 0:00:23] Black is weak on the light squares} 26. Bxc6 {[%emt 0:00:15][%cal Bf3c6,Bc6d5,Bd5c4][%mdl 32] White is more active.} ({Don't play} 26. Qxc6 $6 Nxf3+ 27. Rxf3 Qxe6 28. Rd7+ Kh6 29. Qxe6 Rxe6 $14) 26... Kh6 {[%emt 0:00:03]} 27. Qxe7 {[%emt 0:00:22]} Rxe7 {[%emt 0:00:01]} 28. Bd5 {[%emt 0:00:01]} Nh7 {[%emt 0:00:50] [#] This costs Black the game.} (28... f3 $16 {keeps fighting.}) 29. Bc4 $1 $18 {[%emt 0:00:05]} g5 {[%emt 0:00:03]} 30. Rd7 {[%emt 0:00:14]} Rfe8 {[%emt 0:00:03] [#] White is clearly better.} 31. h4 $1 {[%emt 0:00:11][%mdl 512]} Nf6 {[%emt 0:00:02]} 32. hxg5+ {[%emt 0:00:02]} Kxg5 {[%emt 0:00:12]} 33. Rd4 {[%emt 0:00:01] Weighted Error Value: White=0.19 (very precise) /Black=0.27 (precise)   Mistake:       	White=2     	Black=5      Inaccurate:     	---       	Black=2      OK:         	White=9     	Black=8      Best:        	White=1     	Black=3} 1-0

[Event "CCT Chessable Masters Playoffs 2025"]
[Site "Online"]
[Date "2025.02.18"]
[Round "2"]
[White "Erigaisi Arjun"]
[Black "Wei, Yi"]
[Result "1-0"]
[Annotator "TA"]
[ECO "C67"]
[WhiteElo "2801"]
[BlackElo "2755"]
[PlyCount "67"]
[EventDate "2025.02.13"]
[EventType "k.o."]
[EventCountry "NET"]
[SourceTitle "playchess.com"]
[Source "ChessBase"]
[SourceQuality "1"]
[TimeControl "600"]

{[%evp 9,67,31,27,-20,0,-13,-2,-18,-20,-7,0,-95,-84,-108,-94,-93,-101,-102,-35,-35,97,100,88,85,174,103,236,119,120,133,135,102,64,70,144,168,142,123,112,82,95,0,0,0,0,0,95,77,714,691,697,675,896,488,1319,1248,29980,29981,29981,29981]} 1. e4 {[%emt 0:00:00]} e5 {[%emt 0:00:04]} 2. Nf3 {[%emt 0:00:02]} Nc6 {[%emt 0:00:02]} 3. Bb5 {[%emt 0:00:00]} Nf6 {[%emt 0:00:02]} 4. O-O {[%emt 0:00:02]} Nxe4 {[%emt 0:00:02]} 5. d4 {[%emt 0:00:00]} Nd6 {[%emt 0:00:01]} 6. Ba4 {[%emt 0:00:01] C67: Ruy Lopez: Berlin Defence: 4 0-0 Nxe4.} (6. Bxc6 {feels stronger.} dxc6 7. dxe5) 6... e4 {[%emt 0:00:09]} 7. Re1 {[%emt 0:00:01]} Be7 {[%emt 0:00:04]} 8. Ne5 {[%emt 0:00:01] The position is equal.} b5 {[%emt 0:00:16]} 9. Bb3 {[%emt 0:00:00]} Na5 $1 {[%emt 0:00:01]} 10. Bxf7+ $5 $146 {[%emt 0:00:02][%mdl 8] An interesting novelty.} (10. Bd5 c6 11. Bxe4 Nxe4 12. Rxe4 d6 13. Nf3 O-O 14. b3 Bf5 15. Re2 Re8 16. Bf4 {½-½ Caruana,F (2764)-Artemiev,V (2701) Chessable Masters Div 1 Win rapid 2023 (2.2)}) 10... Nxf7 $17 {[%emt 0:00:01]} 11. Nxf7 {[%emt 0:00:00]} Kxf7 {[%emt 0:00:01]} 12. Qh5+ {[%emt 0:00:01]} Kf8 {[%emt 0:00:22]} 13. Nc3 {[%emt 0:00:02]} Qe8 {[%emt 0:00:48]} (13... a6 $17 {...Qe8 is the strong threat.} 14. Rxe4 Bb7) 14. Qxb5 $15 {[%emt 0:00:01] A sharp opening} Nc6 {[%emt 0:00:05]} (14... Nb7 $1 $15 {keeps the upper hand.}) 15. Rxe4 $16 {[%emt 0:00:12]} Rb8 {[%emt 0:01:01]} 16. Qe2 {[%emt 0:01:04]} Qf7 {[%emt 0:00:08]} (16... d6 $16) 17. d5 $18 {[%emt 0:00:19]} Nd8 {[%emt 0:00:08]} (17... Nb4 $16) 18. Bf4 {[%emt 0:00:11]} ({Better is} 18. Bd2 $1 $18) 18... Rb4 $16 {[%emt 0:00:02]} 19. Bxc7 {[%emt 0:00:57]} Rxe4 {[%emt 0:00:13]} 20. Qxe4 {[%emt 0:00:01]} d6 {[%emt 0:00:13]} 21. Re1 {[%emt 0:00:03] Strongly threatening Nb5.} Bf5 {[%emt 0:00:11] [#]} (21... Nb7 $14) 22. Qb4 $1 {[%emt 0:00:19][%csl Od6] White attacks a weakness} Qf6 {[%emt 0:00:10]} 23. Ne4 {[%emt 0:00:12] White is much more active. The black rooks are passive.} Bxe4 {[%emt 0:00:11]} 24. Rxe4 {[%emt 0:00:00]} g5 {[%emt 0:00:12]} 25. Re3 {[%emt 0:00:45]} (25. Bxd8 $16 Bxd8 26. Re6) 25... Nf7 $1 $11 {[%emt 0:00:16]} 26. Re6 {[%emt 0:00:19]} Qf5 {[%emt 0:00:14][%csl LRc2,LRd5]} 27. c4 {[%emt 0:00:29]} Ne5 {[%emt 0:00:39]} (27... Qb1+ $11 {remains equal.} 28. Re1 Qxa2) 28. h3 $1 $36 {[%emt 0:00:02][%mdl 2048] White has strong initiative. Chess con chili.} (28. Bxd6 $2 Qb1+) (28. Qb8+ $2 Kg7 29. Rxe7+ Kg6 30. Re6+ (30. Qxh8 $2 Qb1#) 30... Kh5 $19 (30... Kf7 $2 31. Re7+ Kg6 32. Re6+ Kh5 33. h3 $19)) 28... Nd3 $2 {[%emt 0:00:29][%mdl 8192]} (28... Qb1+ 29. Kh2 Qf5 30. c5 $18 (30. Bxd6 Qf4+ 31. Kh1 Qc1+ 32. Kh2 Qf4+ 33. Kh1 Qc1+ 34. Kh2 Qf4+ $11) (30. Qb8+ Kf7 $11)) (28... Nf7 $16) 29. Qb8+ $18 {[%emt 0:00:18]} Kf7 {[%emt 0:00:02] [#]} 30. Rxe7+ $1 {[%emt 0:00:02]} (30. Qxh8 Qxf2+ 31. Kh2 Qf4+ 32. Kh1 Qf1+ 33. Kh2 Qf4+ 34. Kg1 Qf2+ 35. Kh2 Qf4+ $11) ({Weaker is} 30. Qxa7 Ra8 31. Qe3 (31. Qxa8 Qxf2+ 32. Kh2 Qf4+ 33. g3 Qd2+ 34. Kg1 Qf2+ 35. Kh1 Qf1+ 36. Kh2 Qf2+ 37. Kh1 Qf3+ 38. Kh2 Qf2+ 39. Kh1 $11) 31... Ne5 $16) 30... Kg6 {[%emt 0:00:18]} 31. Re6+ {[%emt 0:00:12]} ({Not} 31. Qxh8 Qxf2+ 32. Kh2 Qf4+ 33. Kh1 Qf1+ 34. Kh2 Qf4+ 35. Kh1 Qf1+ 36. Kh2 Qf4+ $11) 31... Kg7 {[%emt 0:00:06]} (31... Qxe6 $142 32. Qxh8 (32. dxe6 Rxb8 33. Bxb8 Nxb2 $18) 32... Qe1+ 33. Kh2 Qe7 34. Qg8+ Kh6 35. Qe6+ Qxe6 36. dxe6 Kg6) 32. Qxa7 {[%emt 0:00:04] White threatens Bd8+ and mate.} Rf8 {[%emt 0:00:04]} 33. Bxd6+ {[%emt 0:00:03]} Rf7 {[%emt 0:00:04]} 34. Qd4+ {[%emt 0:00:01] Weighted Error Value: White=0.40/Black=0.80  Loses game:     	---       	Black=1      Mistake:       	White=3     	Black=6      Inaccurate:     	---       	Black=1      OK:         	White=7     	Black=7      Best:        	White=5     	Black=4      Strong:       	White=1     	Black=2} 1-0